Workbook

Sheet Ryzyko portfela - korelacja

Sheet Pomiar ryzyka portfela 2 akcji
B1: Pomiar ryzyka i stopy zwrotu portfela - portfel obligacji i akcji:
B6: u A | C6: S P | D6: E (P)
A7: A | B7: 0 | C7: =B7*0.4 -> 0 | D7: =5%+B7*15% -> 0.05
A8: B | B8: 0.2 | C8: 0.08 | D8: 0.08
A9: C | B9: 0.4 | C9: 0.16 | D9: 0.11
A10: D | B10: 0.6 | C10: 0.24 | D10: 0.14
A11: E | B11: 0.8 | C11: 0.32 | D11: 0.17
A12: F | B12: 1 | C12: 0.4 | D12: 0.2
B17: Pomiar ryzyka i stopy zwrotu portfela - portfel 2 akcji:
B19: 38 | C19: U | D19: S(x) | E19: E(X) | Y19: u A | Z19: E(P) | AA19: S(P)
A20: P a | B20: A | C20: =B19/100 -> 0.38 | D20: 0.25 | E20: 0.2 | Y20: 0 | Z20: =$Y20*$E$20+(1-$Y20)*$E$21 -> 0.1 | AA20: =($Y20^2*$D$20^2+(1-$Y20)^2*$D$21^2+2*$Y20*(1-$Y20)*$D$20*$D$21*$C$22)^0.5 -> 0.15
B21: B | C21: =1-C20 -> 0.62 | D21: 0.15 | E21: 0.1 | Y21: 0.025 | Z21: 0.1025 | AA21: 0.14
B22: korelacja | C22: =-1+(D22/50) -> -1 | D22: 0 | Y22: 0.05 | Z22: 0.105 | AA22: 0.13
Y23: 0.075 | Z23: 0.1075 | AA23: 0.12
Y24: 0.1 | Z24: 0.11 | AA24: 0.11
C25: E(P) | D25: S(P) | E25: S2(P) | Y25: 0.125 | Z25: 0.1125 | AA25: 0.1
C26: =C20*E20+C21*E21 -> 0.138 | D26: =($C$20^2*$D$20^2+$C$21^2*$D$21^2+2*$C$20*$C$21*$D$20*$D$21*C22)^0.5 -> 0.002 | E26: =($C$20^2*$D$20^2+$C$21^2*$D$21^2+2*$C$20*$C$21*$D$20*$D$21*C22) -> 4e-06 | Y26: 0.15 | Z26: 0.115 | AA26: 0.09
Y27: 0.175 | Z27: 0.1175 | AA27: 0.08
B28: portfel o min. ryzyku P min S: | Y28: 0.2 | Z28: 0.12 | AA28: 0.07
B29: u A | C29: u B | D29: S(x) | E29: E(X) | Y29: 0.225 | Z29: 0.1225 | AA29: 0.06
B30: =(D21^2-D20*D21*C22)/(D20^2+D21^2-2*D20*D21*C22) -> 0.375 | C30: =1-B30 -> 0.625 | D30: =(B30^2*D20^2+C30^2*D21^2+2*B30*C30*D20*D21*C22)^0.5 -> 1.862645149e-09 | E30: =B30*E20+C30*E21 -> 0.1375 | Y30: 0.25 | Z30: 0.125 | AA30: 0.05
Y31: 0.275 | Z31: 0.1275 | AA31: 0.04
Y32: 0.3 | Z32: 0.13 | AA32: 0.03
Y33: 0.325 | Z33: 0.1325 | AA33: 0.02
Y34: 0.35 | Z34: 0.135 | AA34: 0.01
Y35: 0.375 | Z35: 0.1375 | AA35: 0
Y36: 0.4 | Z36: 0.14 | AA36: 0.01
Y37: 0.425 | Z37: 0.1425 | AA37: 0.02
Y38: 0.45 | Z38: 0.145 | AA38: 0.03
Y39: 0.475 | Z39: 0.1475 | AA39: 0.04
Y40: 0.5 | Z40: 0.15 | AA40: 0.05
Y41: 0.525 | Z41: 0.1525 | AA41: 0.06
Y42: 0.55 | Z42: 0.155 | AA42: 0.07
Y43: 0.575 | Z43: 0.1575 | AA43: 0.08
Y44: 0.6 | Z44: 0.16 | AA44: 0.09
Y45: 0.625 | Z45: 0.1625 | AA45: 0.1
Y46: 0.65 | Z46: 0.165 | AA46: 0.11
Y47: 0.675 | Z47: 0.1675 | AA47: 0.12
Y48: 0.7 | Z48: 0.17 | AA48: 0.13
Y49: 0.725 | Z49: 0.1725 | AA49: 0.14
Y50: 0.75 | Z50: 0.175 | AA50: 0.15
Y51: 0.775 | Z51: 0.1775 | AA51: 0.16
Y52: 0.8 | Z52: 0.18 | AA52: 0.17
Y53: 0.825 | Z53: 0.1825 | AA53: 0.18
Y54: 0.85 | Z54: 0.185 | AA54: 0.19
Y55: 0.875 | Z55: 0.1875 | AA55: 0.2
Y56: 0.9 | Z56: 0.19 | AA56: 0.21
Y57: 0.925 | Z57: 0.1925 | AA57: 0.22
Y58: 0.95 | Z58: 0.195 | AA58: 0.23
Y59: 0.975 | Z59: 0.1975 | AA59: 0.24
Y60: 1 | Z60: 0.2 | AA60: 0.25

Sheet Dane (hidden)
C2: akcja A | D2: Akcja B | E2: Portfel AB
B3: E(x) = | C3: =AVERAGE(C$8:C$59) -> 0.3892373415 | D3: =AVERAGE(D$8:D$59) -> 0.04461867076 | E3: =IF(Dane!$R$13,AVERAGE(E$8:E$59),"") -> 0.2479436865
B4: S(x) = | C4: =STDEV(C$8:C$59) -> 0.116770862 | D4: =STDEV(D$8:D$59) -> 0.05838543098 | E4: =IF(Dane!$R$13,STDEV(E$8:E$59),"") -> 0.09283283526
B5: kor AB = | C5: =CORREL(C8:C59,D8:D59) -> 1
C7: akcja A | D7: Akcja B | E7: Portfel AB | I7: =AVERAGE(I10:I61) -> -0.01076265849 | J7: =AVERAGE(J10:J61) -> 0.003172585597
B8: 1 | C8: =40%+Dane!$I10 -> 0.4822190046 | D8: =IF(Dane!$O$11<>2,IF(Dane!$O$11=1,5%+Dane!$I10/2,5%-Dane!$I10/2),5%+Dane!J10) -> 0.09110950232 | E8: =IF(Dane!$R$13,Dane!$Q$11*C8+Dane!$R$11*D8,NA()) -> 0.3218641087 | I8: 0.02042081356 | J8: =STDEV(J10:J61) -> 0.05632354056
B9: 2 | C9: =40%+Dane!$I11 -> 0.4318074465 | D9: =IF(Dane!$O$11<>2,IF(Dane!$O$11=1,5%+Dane!$I11/2,5%-Dane!$I11/2),5%+Dane!J11) -> 0.06590372324 | E9: =IF(Dane!$R$13,Dane!$Q$11*C9+Dane!$R$11*D9,NA()) -> 0.28178692
B10: 3 | C10: =40%+Dane!$I12 -> 0.3207792044 | D10: =IF(Dane!$O$11<>2,IF(Dane!$O$11=1,5%+Dane!$I12/2,5%-Dane!$I12/2),5%+Dane!J12) -> 0.01038960218 | E10: =IF(Dane!$R$13,Dane!$Q$11*C10+Dane!$R$11*D10,NA()) -> 0.1935194675 | I10: 0.08221900463 | J10: 0.006684803963 | K10: 0 | L10: =IF($R$13,K10*Dane!$C$3+(1-K10)*Dane!$D$3,NA()) -> 0.04461867076 | M10: =(K10^2*Dane!$C$4^2+(1-K10)^2*Dane!$D$4^2+2*K10*(1-K10)*Dane!$C$4*Dane!$D$4*Dane!$C$5)^0.5 -> 0.05838543098 | N10: korelacja = 1 | Q10: udział A: | R10: udział B:
B11: 4 | C11: =40%+Dane!$I13 -> 0.2056070566 | D11: =IF(Dane!$O$11<>2,IF(Dane!$O$11=1,5%+Dane!$I13/2,5%-Dane!$I13/2),5%+Dane!J13) -> -0.04719647169 | E11: =IF(Dane!$R$13,Dane!$Q$11*C11+Dane!$R$11*D11,NA()) -> 0.10195761 | I11: 0.03180744648 | J11: -0.04208750725 | K11: 0.02 | L11: =IF($R$13,K11*Dane!$C$3+(1-K11)*Dane!$D$3,NA()) -> 0.05151104417 | M11: =(K11^2*Dane!$C$4^2+(1-K11)^2*Dane!$D$4^2+2*K11*(1-K11)*Dane!$C$4*Dane!$D$4*Dane!$C$5)^0.5 -> 0.0595531396 | N11: brak korelacji | O11: 1 | Q11: =1-R11 -> 0.59 | R11: =Q13/100 -> 0.41
B12: 5 | C12: =40%+Dane!$I14 -> 0.5257960081 | D12: =IF(Dane!$O$11<>2,IF(Dane!$O$11=1,5%+Dane!$I14/2,5%-Dane!$I14/2),5%+Dane!J14) -> 0.1128980041 | E12: =IF(Dane!$R$13,Dane!$Q$11*C12+Dane!$R$11*D12,NA()) -> 0.3565078264 | I12: -0.07922079563 | J12: 0.05494801998 | K12: 0.04 | L12: =IF($R$13,K12*Dane!$C$3+(1-K12)*Dane!$D$3,NA()) -> 0.05840341759 | M12: =(K12^2*Dane!$C$4^2+(1-K12)^2*Dane!$D$4^2+2*K12*(1-K12)*Dane!$C$4*Dane!$D$4*Dane!$C$5)^0.5 -> 0.06072084822 | N12: korelacja = -1
B13: 6 | C13: =40%+Dane!$I15 -> 0.2181411028 | D13: =IF(Dane!$O$11<>2,IF(Dane!$O$11=1,5%+Dane!$I15/2,5%-Dane!$I15/2),5%+Dane!J15) -> -0.0409294486 | E13: =IF(Dane!$R$13,Dane!$Q$11*C13+Dane!$R$11*D13,NA()) -> 0.1119221767 | I13: -0.1943929434 | J13: 0.05214471817 | K13: 0.06 | L13: =IF($R$13,K13*Dane!$C$3+(1-K13)*Dane!$D$3,NA()) -> 0.065295791 | M13: =(K13^2*Dane!$C$4^2+(1-K13)^2*Dane!$D$4^2+2*K13*(1-K13)*Dane!$C$4*Dane!$D$4*Dane!$C$5)^0.5 -> 0.06188855684 | Q13: 41 | R13: TRUE
B14: 7 | C14: =40%+Dane!$I16 -> 0.5450477362 | D14: =IF(Dane!$O$11<>2,IF(Dane!$O$11=1,5%+Dane!$I16/2,5%-Dane!$I16/2),5%+Dane!J16) -> 0.1225238681 | E14: =IF(Dane!$R$13,Dane!$Q$11*C14+Dane!$R$11*D14,NA()) -> 0.3718129503 | I14: 0.1257960081 | J14: 0.04180757999 | K14: 0.08 | L14: =IF($R$13,K14*Dane!$C$3+(1-K14)*Dane!$D$3,NA()) -> 0.07218816442 | M14: =(K14^2*Dane!$C$4^2+(1-K14)^2*Dane!$D$4^2+2*K14*(1-K14)*Dane!$C$4*Dane!$D$4*Dane!$C$5)^0.5 -> 0.06305626546
B15: 8 | C15: =40%+Dane!$I17 -> 0.3494144678 | D15: =IF(Dane!$O$11<>2,IF(Dane!$O$11=1,5%+Dane!$I17/2,5%-Dane!$I17/2),5%+Dane!J17) -> 0.02470723391 | E15: =IF(Dane!$R$13,Dane!$Q$11*C15+Dane!$R$11*D15,NA()) -> 0.2162845019 | I15: -0.1818588972 | J15: -0.01719346046 | K15: 0.1 | L15: =IF($R$13,K15*Dane!$C$3+(1-K15)*Dane!$D$3,NA()) -> 0.07908053783 | M15: =(K15^2*Dane!$C$4^2+(1-K15)^2*Dane!$D$4^2+2*K15*(1-K15)*Dane!$C$4*Dane!$D$4*Dane!$C$5)^0.5 -> 0.06422397408
B16: 9 | C16: =40%+Dane!$I18 -> 0.5485783339 | D16: =IF(Dane!$O$11<>2,IF(Dane!$O$11=1,5%+Dane!$I18/2,5%-Dane!$I18/2),5%+Dane!J18) -> 0.1242891669 | E16: =IF(Dane!$R$13,Dane!$Q$11*C16+Dane!$R$11*D16,NA()) -> 0.3746197754 | I16: 0.1450477362 | J16: 0.05809600353 | K16: 0.12 | L16: =IF($R$13,K16*Dane!$C$3+(1-K16)*Dane!$D$3,NA()) -> 0.08597291125 | M16: =(K16^2*Dane!$C$4^2+(1-K16)^2*Dane!$D$4^2+2*K16*(1-K16)*Dane!$C$4*Dane!$D$4*Dane!$C$5)^0.5 -> 0.0653916827
B17: 10 | C17: =40%+Dane!$I19 -> 0.5798226595 | D17: =IF(Dane!$O$11<>2,IF(Dane!$O$11=1,5%+Dane!$I19/2,5%-Dane!$I19/2),5%+Dane!J19) -> 0.1399113297 | E17: =IF(Dane!$R$13,Dane!$Q$11*C17+Dane!$R$11*D17,NA()) -> 0.3994590143 | I17: -0.05058553219 | J17: 0.09239063263 | K17: 0.14 | L17: =IF($R$13,K17*Dane!$C$3+(1-K17)*Dane!$D$3,NA()) -> 0.09286528466 | M17: =(K17^2*Dane!$C$4^2+(1-K17)^2*Dane!$D$4^2+2*K17*(1-K17)*Dane!$C$4*Dane!$D$4*Dane!$C$5)^0.5 -> 0.06655939132 | N17: 1 | O17: =Dane!C3 -> 0.3892373415 | P17: =Dane!D3 -> 0.04461867076 | Q17: =Dane!E3 -> 0.2479436865
B18: 11 | C18: =40%+Dane!$I20 -> 0.4099473715 | D18: =IF(Dane!$O$11<>2,IF(Dane!$O$11=1,5%+Dane!$I20/2,5%-Dane!$I20/2),5%+Dane!J20) -> 0.05497368574 | E18: =IF(Dane!$R$13,Dane!$Q$11*C18+Dane!$R$11*D18,NA()) -> 0.2644081603 | I18: 0.1485783339 | J18: -0.08875262737 | K18: 0.16 | L18: =IF($R$13,K18*Dane!$C$3+(1-K18)*Dane!$D$3,NA()) -> 0.09975765808 | M18: =(K18^2*Dane!$C$4^2+(1-K18)^2*Dane!$D$4^2+2*K18*(1-K18)*Dane!$C$4*Dane!$D$4*Dane!$C$5)^0.5 -> 0.06772709994 | N18: 52 | O18: =O17 -> 0.3892373415 | P18: =P17 -> 0.04461867076 | Q18: =Q17 -> 0.2479436865
B19: 12 | C19: =40%+Dane!$I21 -> 0.2214018106 | D19: =IF(Dane!$O$11<>2,IF(Dane!$O$11=1,5%+Dane!$I21/2,5%-Dane!$I21/2),5%+Dane!J21) -> -0.03929909468 | E19: =IF(Dane!$R$13,Dane!$Q$11*C19+Dane!$R$11*D19,NA()) -> 0.1145144395 | I19: 0.1798226595 | J19: -0.02719626427 | K19: 0.18 | L19: =IF($R$13,K19*Dane!$C$3+(1-K19)*Dane!$D$3,NA()) -> 0.1066500315 | M19: =(K19^2*Dane!$C$4^2+(1-K19)^2*Dane!$D$4^2+2*K19*(1-K19)*Dane!$C$4*Dane!$D$4*Dane!$C$5)^0.5 -> 0.06889480856
B20: 13 | C20: =40%+Dane!$I22 -> 0.3874800444 | D20: =IF(Dane!$O$11<>2,IF(Dane!$O$11=1,5%+Dane!$I22/2,5%-Dane!$I22/2),5%+Dane!J22) -> 0.04374002218 | E20: =IF(Dane!$R$13,Dane!$Q$11*C20+Dane!$R$11*D20,NA()) -> 0.2465466353 | I20: 0.009947371483 | J20: 0.05342233181 | K20: 0.2 | L20: =IF($R$13,K20*Dane!$C$3+(1-K20)*Dane!$D$3,NA()) -> 0.1135424049 | M20: =(K20^2*Dane!$C$4^2+(1-K20)^2*Dane!$D$4^2+2*K20*(1-K20)*Dane!$C$4*Dane!$D$4*Dane!$C$5)^0.5 -> 0.07006251718
B21: 14 | C21: =40%+Dane!$I23 -> 0.4490786791 | D21: =IF(Dane!$O$11<>2,IF(Dane!$O$11=1,5%+Dane!$I23/2,5%-Dane!$I23/2),5%+Dane!J23) -> 0.07453933954 | E21: =IF(Dane!$R$13,Dane!$Q$11*C21+Dane!$R$11*D21,NA()) -> 0.2955175499 | I21: -0.1785981894 | J21: 0.01849164963 | K21: 0.22 | L21: =IF($R$13,K21*Dane!$C$3+(1-K21)*Dane!$D$3,NA()) -> 0.1204347783 | M21: =(K21^2*Dane!$C$4^2+(1-K21)^2*Dane!$D$4^2+2*K21*(1-K21)*Dane!$C$4*Dane!$D$4*Dane!$C$5)^0.5 -> 0.0712302258
B22: 15 | C22: =40%+Dane!$I24 -> 0.3055171728 | D22: =IF(Dane!$O$11<>2,IF(Dane!$O$11=1,5%+Dane!$I24/2,5%-Dane!$I24/2),5%+Dane!J24) -> 0.002758586407 | E22: =IF(Dane!$R$13,Dane!$Q$11*C22+Dane!$R$11*D22,NA()) -> 0.1813861524 | I22: -0.01251995564 | J22: -0.04036691189 | K22: 0.24 | L22: =IF($R$13,K22*Dane!$C$3+(1-K22)*Dane!$D$3,NA()) -> 0.1273271517 | M22: =(K22^2*Dane!$C$4^2+(1-K22)^2*Dane!$D$4^2+2*K22*(1-K22)*Dane!$C$4*Dane!$D$4*Dane!$C$5)^0.5 -> 0.07239793442
B23: 16 | C23: =40%+Dane!$I25 -> 0.5319206476 | D23: =IF(Dane!$O$11<>2,IF(Dane!$O$11=1,5%+Dane!$I25/2,5%-Dane!$I25/2),5%+Dane!J25) -> 0.1159603238 | E23: =IF(Dane!$R$13,Dane!$Q$11*C23+Dane!$R$11*D23,NA()) -> 0.3613769149 | I23: 0.04907867908 | J23: 0.02956423759 | K23: 0.26 | L23: =IF($R$13,K23*Dane!$C$3+(1-K23)*Dane!$D$3,NA()) -> 0.1342195252 | M23: =(K23^2*Dane!$C$4^2+(1-K23)^2*Dane!$D$4^2+2*K23*(1-K23)*Dane!$C$4*Dane!$D$4*Dane!$C$5)^0.5 -> 0.07356564304
B24: 17 | C24: =40%+Dane!$I26 -> 0.4356652021 | D24: =IF(Dane!$O$11<>2,IF(Dane!$O$11=1,5%+Dane!$I26/2,5%-Dane!$I26/2),5%+Dane!J26) -> 0.06783260107 | E24: =IF(Dane!$R$13,Dane!$Q$11*C24+Dane!$R$11*D24,NA()) -> 0.2848538357 | I24: -0.09448282719 | J24: -0.04413158894 | K24: 0.28 | L24: =IF($R$13,K24*Dane!$C$3+(1-K24)*Dane!$D$3,NA()) -> 0.1411118986 | M24: =(K24^2*Dane!$C$4^2+(1-K24)^2*Dane!$D$4^2+2*K24*(1-K24)*Dane!$C$4*Dane!$D$4*Dane!$C$5)^0.5 -> 0.07473335166
B25: 18 | C25: =40%+Dane!$I27 -> 0.5643857241 | D25: =IF(Dane!$O$11<>2,IF(Dane!$O$11=1,5%+Dane!$I27/2,5%-Dane!$I27/2),5%+Dane!J27) -> 0.132192862 | E25: =IF(Dane!$R$13,Dane!$Q$11*C25+Dane!$R$11*D25,NA()) -> 0.3871866506 | I25: 0.1319206476 | J25: 0.06492042542 | K25: 0.3 | L25: =IF($R$13,K25*Dane!$C$3+(1-K25)*Dane!$D$3,NA()) -> 0.148004272 | M25: =(K25^2*Dane!$C$4^2+(1-K25)^2*Dane!$D$4^2+2*K25*(1-K25)*Dane!$C$4*Dane!$D$4*Dane!$C$5)^0.5 -> 0.07590106028
B26: 19 | C26: =40%+Dane!$I28 -> 0.4780462027 | D26: =IF(Dane!$O$11<>2,IF(Dane!$O$11=1,5%+Dane!$I28/2,5%-Dane!$I28/2),5%+Dane!J28) -> 0.08902310133 | E26: =IF(Dane!$R$13,Dane!$Q$11*C26+Dane!$R$11*D26,NA()) -> 0.3185467311 | I26: 0.03566520214 | J26: 0.0972186327 | K26: 0.32 | L26: =IF($R$13,K26*Dane!$C$3+(1-K26)*Dane!$D$3,NA()) -> 0.1548966454 | M26: =(K26^2*Dane!$C$4^2+(1-K26)^2*Dane!$D$4^2+2*K26*(1-K26)*Dane!$C$4*Dane!$D$4*Dane!$C$5)^0.5 -> 0.0770687689
B27: 20 | C27: =40%+Dane!$I29 -> 0.2975725412 | D27: =IF(Dane!$O$11<>2,IF(Dane!$O$11=1,5%+Dane!$I29/2,5%-Dane!$I29/2),5%+Dane!J29) -> -0.001213729382 | E27: =IF(Dane!$R$13,Dane!$Q$11*C27+Dane!$R$11*D27,NA()) -> 0.1750701703 | I27: 0.1643857241 | J27: -0.05462679863 | K27: 0.34 | L27: =IF($R$13,K27*Dane!$C$3+(1-K27)*Dane!$D$3,NA()) -> 0.1617890188 | M27: =(K27^2*Dane!$C$4^2+(1-K27)^2*Dane!$D$4^2+2*K27*(1-K27)*Dane!$C$4*Dane!$D$4*Dane!$C$5)^0.5 -> 0.07823647751
B28: 21 | C28: =40%+Dane!$I30 -> 0.2425478697 | D28: =IF(Dane!$O$11<>2,IF(Dane!$O$11=1,5%+Dane!$I30/2,5%-Dane!$I30/2),5%+Dane!J30) -> -0.02872606516 | E28: =IF(Dane!$R$13,Dane!$Q$11*C28+Dane!$R$11*D28,NA()) -> 0.1313255564 | I28: 0.07804620266 | J28: 0.09600064754 | K28: 0.36 | L28: =IF($R$13,K28*Dane!$C$3+(1-K28)*Dane!$D$3,NA()) -> 0.1686813922 | M28: =(K28^2*Dane!$C$4^2+(1-K28)^2*Dane!$D$4^2+2*K28*(1-K28)*Dane!$C$4*Dane!$D$4*Dane!$C$5)^0.5 -> 0.07940418613
B29: 22 | C29: =40%+Dane!$I31 -> 0.4704703569 | D29: =IF(Dane!$O$11<>2,IF(Dane!$O$11=1,5%+Dane!$I31/2,5%-Dane!$I31/2),5%+Dane!J31) -> 0.08523517847 | E29: =IF(Dane!$R$13,Dane!$Q$11*C29+Dane!$R$11*D29,NA()) -> 0.3125239338 | I29: -0.1024274588 | J29: 0.006774616241 | K29: 0.38 | L29: =IF($R$13,K29*Dane!$C$3+(1-K29)*Dane!$D$3,NA()) -> 0.1755737656 | M29: =(K29^2*Dane!$C$4^2+(1-K29)^2*Dane!$D$4^2+2*K29*(1-K29)*Dane!$C$4*Dane!$D$4*Dane!$C$5)^0.5 -> 0.08057189475
B30: 23 | C30: =40%+Dane!$I32 -> 0.4300735235 | D30: =IF(Dane!$O$11<>2,IF(Dane!$O$11=1,5%+Dane!$I32/2,5%-Dane!$I32/2),5%+Dane!J32) -> 0.06503676176 | E30: =IF(Dane!$R$13,Dane!$Q$11*C30+Dane!$R$11*D30,NA()) -> 0.2804084512 | I30: -0.1574521303 | J30: 0.09988291264 | K30: 0.4 | L30: =IF($R$13,K30*Dane!$C$3+(1-K30)*Dane!$D$3,NA()) -> 0.1824661391 | M30: =(K30^2*Dane!$C$4^2+(1-K30)^2*Dane!$D$4^2+2*K30*(1-K30)*Dane!$C$4*Dane!$D$4*Dane!$C$5)^0.5 -> 0.08173960337
B31: 24 | C31: =40%+Dane!$I33 -> 0.241209054 | D31: =IF(Dane!$O$11<>2,IF(Dane!$O$11=1,5%+Dane!$I33/2,5%-Dane!$I33/2),5%+Dane!J33) -> -0.029395473 | E31: =IF(Dane!$R$13,Dane!$Q$11*C31+Dane!$R$11*D31,NA()) -> 0.1302611979 | I31: 0.07047035694 | J31: -0.09685921669 | K31: 0.42 | L31: =IF($R$13,K31*Dane!$C$3+(1-K31)*Dane!$D$3,NA()) -> 0.1893585125 | M31: =(K31^2*Dane!$C$4^2+(1-K31)^2*Dane!$D$4^2+2*K31*(1-K31)*Dane!$C$4*Dane!$D$4*Dane!$C$5)^0.5 -> 0.08290731199
B32: 25 | C32: =40%+Dane!$I34 -> 0.3137921095 | D32: =IF(Dane!$O$11<>2,IF(Dane!$O$11=1,5%+Dane!$I34/2,5%-Dane!$I34/2),5%+Dane!J34) -> 0.006896054745 | E32: =IF(Dane!$R$13,Dane!$Q$11*C32+Dane!$R$11*D32,NA()) -> 0.187964727 | I32: 0.03007352352 | J32: -0.0799895525 | K32: 0.44 | L32: =IF($R$13,K32*Dane!$C$3+(1-K32)*Dane!$D$3,NA()) -> 0.1962508859 | M32: =(K32^2*Dane!$C$4^2+(1-K32)^2*Dane!$D$4^2+2*K32*(1-K32)*Dane!$C$4*Dane!$D$4*Dane!$C$5)^0.5 -> 0.08407502061
B33: 26 | C33: =40%+Dane!$I35 -> 0.3183091402 | D33: =IF(Dane!$O$11<>2,IF(Dane!$O$11=1,5%+Dane!$I35/2,5%-Dane!$I35/2),5%+Dane!J35) -> 0.009154570103 | E33: =IF(Dane!$R$13,Dane!$Q$11*C33+Dane!$R$11*D33,NA()) -> 0.1915557665 | I33: -0.158790946 | J33: 0.05977687836 | K33: 0.46 | L33: =IF($R$13,K33*Dane!$C$3+(1-K33)*Dane!$D$3,NA()) -> 0.2031432593 | M33: =(K33^2*Dane!$C$4^2+(1-K33)^2*Dane!$D$4^2+2*K33*(1-K33)*Dane!$C$4*Dane!$D$4*Dane!$C$5)^0.5 -> 0.08524272923
B34: 27 | C34: =40%+Dane!$I36 -> 0.3203881979 | D34: =IF(Dane!$O$11<>2,IF(Dane!$O$11=1,5%+Dane!$I36/2,5%-Dane!$I36/2),5%+Dane!J36) -> 0.01019409895 | E34: =IF(Dane!$R$13,Dane!$Q$11*C34+Dane!$R$11*D34,NA()) -> 0.1932086173 | I34: -0.08620789051 | J34: -0.09087016582 | K34: 0.48 | L34: =IF($R$13,K34*Dane!$C$3+(1-K34)*Dane!$D$3,NA()) -> 0.2100356327 | M34: =(K34^2*Dane!$C$4^2+(1-K34)^2*Dane!$D$4^2+2*K34*(1-K34)*Dane!$C$4*Dane!$D$4*Dane!$C$5)^0.5 -> 0.08641043785
B35: 28 | C35: =40%+Dane!$I37 -> 0.5919317484 | D35: =IF(Dane!$O$11<>2,IF(Dane!$O$11=1,5%+Dane!$I37/2,5%-Dane!$I37/2),5%+Dane!J37) -> 0.1459658742 | E35: =IF(Dane!$R$13,Dane!$Q$11*C35+Dane!$R$11*D35,NA()) -> 0.40908574 | I35: -0.08169085979 | J35: -0.02359786034 | K35: 0.5 | L35: =IF($R$13,K35*Dane!$C$3+(1-K35)*Dane!$D$3,NA()) -> 0.2169280061 | M35: =(K35^2*Dane!$C$4^2+(1-K35)^2*Dane!$D$4^2+2*K35*(1-K35)*Dane!$C$4*Dane!$D$4*Dane!$C$5)^0.5 -> 0.08757814647
B36: 29 | C36: =40%+Dane!$I38 -> 0.3113119841 | D36: =IF(Dane!$O$11<>2,IF(Dane!$O$11=1,5%+Dane!$I38/2,5%-Dane!$I38/2),5%+Dane!J38) -> 0.005655992031 | E36: =IF(Dane!$R$13,Dane!$Q$11*C36+Dane!$R$11*D36,NA()) -> 0.1859930273 | I36: -0.0796118021 | J36: 0.08971421719 | K36: 0.52 | L36: =IF($R$13,K36*Dane!$C$3+(1-K36)*Dane!$D$3,NA()) -> 0.2238203796 | M36: =(K36^2*Dane!$C$4^2+(1-K36)^2*Dane!$D$4^2+2*K36*(1-K36)*Dane!$C$4*Dane!$D$4*Dane!$C$5)^0.5 -> 0.08874585509
B37: 30 | C37: =40%+Dane!$I39 -> 0.2651286364 | D37: =IF(Dane!$O$11<>2,IF(Dane!$O$11=1,5%+Dane!$I39/2,5%-Dane!$I39/2),5%+Dane!J39) -> -0.01743568182 | E37: =IF(Dane!$R$13,Dane!$Q$11*C37+Dane!$R$11*D37,NA()) -> 0.1492772659 | I37: 0.1919317484 | J37: -0.01972513199 | K37: 0.54 | L37: =IF($R$13,K37*Dane!$C$3+(1-K37)*Dane!$D$3,NA()) -> 0.230712753 | M37: =(K37^2*Dane!$C$4^2+(1-K37)^2*Dane!$D$4^2+2*K37*(1-K37)*Dane!$C$4*Dane!$D$4*Dane!$C$5)^0.5 -> 0.08991356371
B38: 31 | C38: =40%+Dane!$I40 -> 0.3640292883 | D38: =IF(Dane!$O$11<>2,IF(Dane!$O$11=1,5%+Dane!$I40/2,5%-Dane!$I40/2),5%+Dane!J40) -> 0.03201464415 | E38: =IF(Dane!$R$13,Dane!$Q$11*C38+Dane!$R$11*D38,NA()) -> 0.2279032842 | I38: -0.08868801594 | J38: -0.06791169643 | K38: 0.56 | L38: =IF($R$13,K38*Dane!$C$3+(1-K38)*Dane!$D$3,NA()) -> 0.2376051264 | M38: =(K38^2*Dane!$C$4^2+(1-K38)^2*Dane!$D$4^2+2*K38*(1-K38)*Dane!$C$4*Dane!$D$4*Dane!$C$5)^0.5 -> 0.09108127233
B39: 32 | C39: =40%+Dane!$I41 -> 0.4850921869 | D39: =IF(Dane!$O$11<>2,IF(Dane!$O$11=1,5%+Dane!$I41/2,5%-Dane!$I41/2),5%+Dane!J41) -> 0.09254609346 | E39: =IF(Dane!$R$13,Dane!$Q$11*C39+Dane!$R$11*D39,NA()) -> 0.3241482886 | I39: -0.1348713636 | J39: 0.02931742668 | K39: 0.58 | L39: =IF($R$13,K39*Dane!$C$3+(1-K39)*Dane!$D$3,NA()) -> 0.2444974998 | M39: =(K39^2*Dane!$C$4^2+(1-K39)^2*Dane!$D$4^2+2*K39*(1-K39)*Dane!$C$4*Dane!$D$4*Dane!$C$5)^0.5 -> 0.09224898095
B40: 33 | C40: =40%+Dane!$I42 -> 0.4532715559 | D40: =IF(Dane!$O$11<>2,IF(Dane!$O$11=1,5%+Dane!$I42/2,5%-Dane!$I42/2),5%+Dane!J42) -> 0.07663577795 | E40: =IF(Dane!$R$13,Dane!$Q$11*C40+Dane!$R$11*D40,NA()) -> 0.2988508869 | I40: -0.03597071171 | J40: -0.01744663715 | K40: 0.6 | L40: =IF($R$13,K40*Dane!$C$3+(1-K40)*Dane!$D$3,NA()) -> 0.2513898732 | M40: =(K40^2*Dane!$C$4^2+(1-K40)^2*Dane!$D$4^2+2*K40*(1-K40)*Dane!$C$4*Dane!$D$4*Dane!$C$5)^0.5 -> 0.09341668957
B41: 34 | C41: =40%+Dane!$I43 -> 0.2744054079 | D41: =IF(Dane!$O$11<>2,IF(Dane!$O$11=1,5%+Dane!$I43/2,5%-Dane!$I43/2),5%+Dane!J43) -> -0.01279729605 | E41: =IF(Dane!$R$13,Dane!$Q$11*C41+Dane!$R$11*D41,NA()) -> 0.1566522993 | I41: 0.08509218693 | J41: -0.03475875854 | K41: 0.62 | L41: =IF($R$13,K41*Dane!$C$3+(1-K41)*Dane!$D$3,NA()) -> 0.2582822466 | M41: =(K41^2*Dane!$C$4^2+(1-K41)^2*Dane!$D$4^2+2*K41*(1-K41)*Dane!$C$4*Dane!$D$4*Dane!$C$5)^0.5 -> 0.09458439819
B42: 35 | C42: =40%+Dane!$I44 -> 0.2322858572 | D42: =IF(Dane!$O$11<>2,IF(Dane!$O$11=1,5%+Dane!$I44/2,5%-Dane!$I44/2),5%+Dane!J44) -> -0.0338570714 | E42: =IF(Dane!$R$13,Dane!$Q$11*C42+Dane!$R$11*D42,NA()) -> 0.1231672565 | I42: 0.0532715559 | J42: -0.05848777294 | K42: 0.64 | L42: =IF($R$13,K42*Dane!$C$3+(1-K42)*Dane!$D$3,NA()) -> 0.26517462 | M42: =(K42^2*Dane!$C$4^2+(1-K42)^2*Dane!$D$4^2+2*K42*(1-K42)*Dane!$C$4*Dane!$D$4*Dane!$C$5)^0.5 -> 0.09575210681
B43: 36 | C43: =40%+Dane!$I45 -> 0.5622919321 | D43: =IF(Dane!$O$11<>2,IF(Dane!$O$11=1,5%+Dane!$I45/2,5%-Dane!$I45/2),5%+Dane!J45) -> 0.1311459661 | E43: =IF(Dane!$R$13,Dane!$Q$11*C43+Dane!$R$11*D43,NA()) -> 0.385522086 | I43: -0.1255945921 | J43: 0.01667180061 | K43: 0.66 | L43: =IF($R$13,K43*Dane!$C$3+(1-K43)*Dane!$D$3,NA()) -> 0.2720669935 | M43: =(K43^2*Dane!$C$4^2+(1-K43)^2*Dane!$D$4^2+2*K43*(1-K43)*Dane!$C$4*Dane!$D$4*Dane!$C$5)^0.5 -> 0.09691981543
B44: 37 | C44: =40%+Dane!$I46 -> 0.5140848875 | D44: =IF(Dane!$O$11<>2,IF(Dane!$O$11=1,5%+Dane!$I46/2,5%-Dane!$I46/2),5%+Dane!J46) -> 0.1070424438 | E44: =IF(Dane!$R$13,Dane!$Q$11*C44+Dane!$R$11*D44,NA()) -> 0.3471974856 | I44: -0.1677141428 | J44: -0.008405709267 | K44: 0.68 | L44: =IF($R$13,K44*Dane!$C$3+(1-K44)*Dane!$D$3,NA()) -> 0.2789593669 | M44: =(K44^2*Dane!$C$4^2+(1-K44)^2*Dane!$D$4^2+2*K44*(1-K44)*Dane!$C$4*Dane!$D$4*Dane!$C$5)^0.5 -> 0.09808752405
B45: 38 | C45: =40%+Dane!$I47 -> 0.3158660173 | D45: =IF(Dane!$O$11<>2,IF(Dane!$O$11=1,5%+Dane!$I47/2,5%-Dane!$I47/2),5%+Dane!J47) -> 0.007933008671 | E45: =IF(Dane!$R$13,Dane!$Q$11*C45+Dane!$R$11*D45,NA()) -> 0.1896134838 | I45: 0.1622919321 | J45: -0.04772634506 | K45: 0.7 | L45: =IF($R$13,K45*Dane!$C$3+(1-K45)*Dane!$D$3,NA()) -> 0.2858517403 | M45: =(K45^2*Dane!$C$4^2+(1-K45)^2*Dane!$D$4^2+2*K45*(1-K45)*Dane!$C$4*Dane!$D$4*Dane!$C$5)^0.5 -> 0.09925523267
B46: 39 | C46: =40%+Dane!$I48 -> 0.4526969671 | D46: =IF(Dane!$O$11<>2,IF(Dane!$O$11=1,5%+Dane!$I48/2,5%-Dane!$I48/2),5%+Dane!J48) -> 0.07634848356 | E46: =IF(Dane!$R$13,Dane!$Q$11*C46+Dane!$R$11*D46,NA()) -> 0.2983940889 | I46: 0.1140848875 | J46: -0.0242194891 | K46: 0.72 | L46: =IF($R$13,K46*Dane!$C$3+(1-K46)*Dane!$D$3,NA()) -> 0.2927441137 | M46: =(K46^2*Dane!$C$4^2+(1-K46)^2*Dane!$D$4^2+2*K46*(1-K46)*Dane!$C$4*Dane!$D$4*Dane!$C$5)^0.5 -> 0.1004229413
B47: 40 | C47: =40%+Dane!$I49 -> 0.3713825464 | D47: =IF(Dane!$O$11<>2,IF(Dane!$O$11=1,5%+Dane!$I49/2,5%-Dane!$I49/2),5%+Dane!J49) -> 0.03569127321 | E47: =IF(Dane!$R$13,Dane!$Q$11*C47+Dane!$R$11*D47,NA()) -> 0.2337491244 | I47: -0.08413398266 | J47: 0.08387541771 | K47: 0.74 | L47: =IF($R$13,K47*Dane!$C$3+(1-K47)*Dane!$D$3,NA()) -> 0.2996364871 | M47: =(K47^2*Dane!$C$4^2+(1-K47)^2*Dane!$D$4^2+2*K47*(1-K47)*Dane!$C$4*Dane!$D$4*Dane!$C$5)^0.5 -> 0.1015906499
B48: 41 | C48: =40%+Dane!$I50 -> 0.4244160414 | D48: =IF(Dane!$O$11<>2,IF(Dane!$O$11=1,5%+Dane!$I50/2,5%-Dane!$I50/2),5%+Dane!J50) -> 0.06220802069 | E48: =IF(Dane!$R$13,Dane!$Q$11*C48+Dane!$R$11*D48,NA()) -> 0.2759107529 | I48: 0.05269696712 | J48: 0.0255284071 | K48: 0.76 | L48: =IF($R$13,K48*Dane!$C$3+(1-K48)*Dane!$D$3,NA()) -> 0.3065288605 | M48: =(K48^2*Dane!$C$4^2+(1-K48)^2*Dane!$D$4^2+2*K48*(1-K48)*Dane!$C$4*Dane!$D$4*Dane!$C$5)^0.5 -> 0.1027583585
B49: 42 | C49: =40%+Dane!$I51 -> 0.5654870272 | D49: =IF(Dane!$O$11<>2,IF(Dane!$O$11=1,5%+Dane!$I51/2,5%-Dane!$I51/2),5%+Dane!J51) -> 0.1327435136 | E49: =IF(Dane!$R$13,Dane!$Q$11*C49+Dane!$R$11*D49,NA()) -> 0.3880621866 | I49: -0.02861745358 | J49: -0.08040523529 | K49: 0.78 | L49: =IF($R$13,K49*Dane!$C$3+(1-K49)*Dane!$D$3,NA()) -> 0.3134212339 | M49: =(K49^2*Dane!$C$4^2+(1-K49)^2*Dane!$D$4^2+2*K49*(1-K49)*Dane!$C$4*Dane!$D$4*Dane!$C$5)^0.5 -> 0.1039260671
B50: 43 | C50: =40%+Dane!$I52 -> 0.2090516806 | D50: =IF(Dane!$O$11<>2,IF(Dane!$O$11=1,5%+Dane!$I52/2,5%-Dane!$I52/2),5%+Dane!J52) -> -0.04547415972 | E50: =IF(Dane!$R$13,Dane!$Q$11*C50+Dane!$R$11*D50,NA()) -> 0.104696086 | I50: 0.02441604137 | J50: 0.03889706135 | K50: 0.8 | L50: =IF($R$13,K50*Dane!$C$3+(1-K50)*Dane!$D$3,NA()) -> 0.3203136074 | M50: =(K50^2*Dane!$C$4^2+(1-K50)^2*Dane!$D$4^2+2*K50*(1-K50)*Dane!$C$4*Dane!$D$4*Dane!$C$5)^0.5 -> 0.1050937758
B51: 44 | C51: =40%+Dane!$I53 -> 0.5664655924 | D51: =IF(Dane!$O$11<>2,IF(Dane!$O$11=1,5%+Dane!$I53/2,5%-Dane!$I53/2),5%+Dane!J53) -> 0.1332327962 | E51: =IF(Dane!$R$13,Dane!$Q$11*C51+Dane!$R$11*D51,NA()) -> 0.3888401459 | I51: 0.1654870272 | J51: 0.06696343422 | K51: 0.82 | L51: =IF($R$13,K51*Dane!$C$3+(1-K51)*Dane!$D$3,NA()) -> 0.3272059808 | M51: =(K51^2*Dane!$C$4^2+(1-K51)^2*Dane!$D$4^2+2*K51*(1-K51)*Dane!$C$4*Dane!$D$4*Dane!$C$5)^0.5 -> 0.1062614844
B52: 45 | C52: =40%+Dane!$I54 -> 0.47117908 | D52: =IF(Dane!$O$11<>2,IF(Dane!$O$11=1,5%+Dane!$I54/2,5%-Dane!$I54/2),5%+Dane!J54) -> 0.08558954 | E52: =IF(Dane!$R$13,Dane!$Q$11*C52+Dane!$R$11*D52,NA()) -> 0.3130873686 | I52: -0.1909483194 | J52: 0.008672118187 | K52: 0.84 | L52: =IF($R$13,K52*Dane!$C$3+(1-K52)*Dane!$D$3,NA()) -> 0.3340983542 | M52: =(K52^2*Dane!$C$4^2+(1-K52)^2*Dane!$D$4^2+2*K52*(1-K52)*Dane!$C$4*Dane!$D$4*Dane!$C$5)^0.5 -> 0.107429193
B53: 46 | C53: =40%+Dane!$I55 -> 0.4054949999 | D53: =IF(Dane!$O$11<>2,IF(Dane!$O$11=1,5%+Dane!$I55/2,5%-Dane!$I55/2),5%+Dane!J55) -> 0.05274749994 | E53: =IF(Dane!$R$13,Dane!$Q$11*C53+Dane!$R$11*D53,NA()) -> 0.2608685249 | I53: 0.1664655924 | J53: -0.01394777298 | K53: 0.86 | L53: =IF($R$13,K53*Dane!$C$3+(1-K53)*Dane!$D$3,NA()) -> 0.3409907276 | M53: =(K53^2*Dane!$C$4^2+(1-K53)^2*Dane!$D$4^2+2*K53*(1-K53)*Dane!$C$4*Dane!$D$4*Dane!$C$5)^0.5 -> 0.1085969016
B54: 47 | C54: =40%+Dane!$I56 -> 0.34138906 | D54: =IF(Dane!$O$11<>2,IF(Dane!$O$11=1,5%+Dane!$I56/2,5%-Dane!$I56/2),5%+Dane!J56) -> 0.02069453001 | E54: =IF(Dane!$R$13,Dane!$Q$11*C54+Dane!$R$11*D54,NA()) -> 0.2099043027 | I54: 0.07117908001 | J54: 0.0004907846451 | K54: 0.88 | L54: =IF($R$13,K54*Dane!$C$3+(1-K54)*Dane!$D$3,NA()) -> 0.347883101 | M54: =(K54^2*Dane!$C$4^2+(1-K54)^2*Dane!$D$4^2+2*K54*(1-K54)*Dane!$C$4*Dane!$D$4*Dane!$C$5)^0.5 -> 0.1097646102
B55: 48 | C55: =40%+Dane!$I57 -> 0.3078926325 | D55: =IF(Dane!$O$11<>2,IF(Dane!$O$11=1,5%+Dane!$I57/2,5%-Dane!$I57/2),5%+Dane!J57) -> 0.003946316242 | E55: =IF(Dane!$R$13,Dane!$Q$11*C55+Dane!$R$11*D55,NA()) -> 0.1832746428 | I55: 0.005494999886 | J55: -0.007403993607 | K55: 0.9 | L55: =IF($R$13,K55*Dane!$C$3+(1-K55)*Dane!$D$3,NA()) -> 0.3547754744 | M55: =(K55^2*Dane!$C$4^2+(1-K55)^2*Dane!$D$4^2+2*K55*(1-K55)*Dane!$C$4*Dane!$D$4*Dane!$C$5)^0.5 -> 0.1109323189
B56: 49 | C56: =40%+Dane!$I58 -> 0.2975380659 | D56: =IF(Dane!$O$11<>2,IF(Dane!$O$11=1,5%+Dane!$I58/2,5%-Dane!$I58/2),5%+Dane!J58) -> -0.001230967045 | E56: =IF(Dane!$R$13,Dane!$Q$11*C56+Dane!$R$11*D56,NA()) -> 0.1750427624 | I56: -0.05861093998 | J56: -0.01903316975 | K56: 0.92 | L56: =IF($R$13,K56*Dane!$C$3+(1-K56)*Dane!$D$3,NA()) -> 0.3616678479 | M56: =(K56^2*Dane!$C$4^2+(1-K56)^2*Dane!$D$4^2+2*K56*(1-K56)*Dane!$C$4*Dane!$D$4*Dane!$C$5)^0.5 -> 0.1121000275
B57: 50 | C57: =40%+Dane!$I59 -> 0.224366498 | D57: =IF(Dane!$O$11<>2,IF(Dane!$O$11=1,5%+Dane!$I59/2,5%-Dane!$I59/2),5%+Dane!J59) -> -0.037816751 | E57: =IF(Dane!$R$13,Dane!$Q$11*C57+Dane!$R$11*D57,NA()) -> 0.1168713659 | I57: -0.09210736752 | J57: -0.08888130188 | K57: 0.94 | L57: =IF($R$13,K57*Dane!$C$3+(1-K57)*Dane!$D$3,NA()) -> 0.3685602213 | M57: =(K57^2*Dane!$C$4^2+(1-K57)^2*Dane!$D$4^2+2*K57*(1-K57)*Dane!$C$4*Dane!$D$4*Dane!$C$5)^0.5 -> 0.1132677361
B58: 51 | C58: =40%+Dane!$I60 -> 0.345998168 | D58: =IF(Dane!$O$11<>2,IF(Dane!$O$11=1,5%+Dane!$I60/2,5%-Dane!$I60/2),5%+Dane!J60) -> 0.022999084 | E58: =IF(Dane!$R$13,Dane!$Q$11*C58+Dane!$R$11*D58,NA()) -> 0.2135685436 | I58: -0.1024619341 | J58: 0.09581558704 | K58: 0.96 | L58: =IF($R$13,K58*Dane!$C$3+(1-K58)*Dane!$D$3,NA()) -> 0.3754525947 | M58: =(K58^2*Dane!$C$4^2+(1-K58)^2*Dane!$D$4^2+2*K58*(1-K58)*Dane!$C$4*Dane!$D$4*Dane!$C$5)^0.5 -> 0.1144354447
B59: 52 | C59: =40%+Dane!$I61 -> 0.2622652292 | D59: =IF(Dane!$O$11<>2,IF(Dane!$O$11=1,5%+Dane!$I61/2,5%-Dane!$I61/2),5%+Dane!J61) -> -0.01886738539 | E59: =IF(Dane!$R$13,Dane!$Q$11*C59+Dane!$R$11*D59,NA()) -> 0.1470008572 | I59: -0.175633502 | J59: -0.02194170952 | K59: 0.98 | L59: =IF($R$13,K59*Dane!$C$3+(1-K59)*Dane!$D$3,NA()) -> 0.3823449681 | M59: =(K59^2*Dane!$C$4^2+(1-K59)^2*Dane!$D$4^2+2*K59*(1-K59)*Dane!$C$4*Dane!$D$4*Dane!$C$5)^0.5 -> 0.1156031533
I60: -0.05400183201 | J60: -0.002021050453 | K60: 1 | L60: =IF($R$13,K60*Dane!$C$3+(1-K60)*Dane!$D$3,NA()) -> 0.3892373415 | M60: =(K60^2*Dane!$C$4^2+(1-K60)^2*Dane!$D$4^2+2*K60*(1-K60)*Dane!$C$4*Dane!$D$4*Dane!$C$5)^0.5 -> 0.116770862
I61: -0.1377347708 | J61: -0.005108165741
